Cogmind - Beta 13 @@@ ROGUE MODE // 2024.07.22 @ 15:45:27 Player: Ellus Result: Destroyed by G-47 Trooper with Particle Gun Performance ------------- Evolutions (2) 1000 Regions Visited (5) 1000 Robots Destroyed (52) 260 Value Destroyed (1508) 1508 Prototype IDs (7) 140 Alien Tech Used (0) 0 Bonus (200) 200 TOTAL SCORE: 4108 Bonus ------- Entered Garrisons 200 Cogmind --------- Core Integrity 0/550 Matter 270/300 Energy 88/100 System Corruption 8% Temperature Cool (9) Movement Walking (120) Location -8/Garrison Parts ------- > --- POWER (2) -------- (None) > --- PROPULSION (3) --- Aluminum Leg Aluminum Leg > --- UTILITY (4) ------ (None) > --- WEAPON (2) ------- Advanced Beam Rifle Katana > --- INVENTORY (5) ---- Improved Terrain Scanner Advanced Beam Cannon Improved Assault Rifle Advanced EMP Blaster Peak State ------------ > --- POWER ------------ Light Ion Engine Light Nuclear Core > --- PROPULSION ------- Wheel Wheel Wheel > --- UTILITY ---------- Improved Heat Sink Improved Terrain Scanner Terrain Scan Processor Sensor Drone Bay > --- WEAPON ----------- Beamcaster Advanced Beam Cannon > --- INVENTORY -------- Wheel Improved Assault Rifle Katana [Rating: 31] Favorites ----------- Power Light Ion Engine Engine Light Ion Engine Power Core Light Nuclear Core Propulsion Aluminum Leg Leg Aluminum Leg Wheel Wheel Flight Unit Flight Unit Utility Improved Heat Sink Device Improved Heat Sink Storage Medium Storage Unit Processor Terrain Scan Processor Protection Light Armor Plating Weapon Medium Laser Energy Gun Medium Laser Energy Cannon Advanced Beam Cannon Ballistic Gun Improved Assault Rifle Launcher Advanced EMP Blaster Slashing Weapon Katana Build | -11 -10 -9 -9 -8 -8 ------- Run | Yrd Mat Mat Min Mat Gar Slots Evolved 4 | . . 2 . 2 . Power 1 | . . . . 1 . Propulsion 1 | . . 1 . . . Utility 2 | . . 1 . 1 . Weapon . | . . . . . . Parts Attached 69 | 6 11 8 14 21 9 Power 7 | 1 1 1 1 3 . Engine 5 | 1 1 1 . 2 . Core 2 | . . . 1 1 . Reactor . | . . . . . . Propulsion 17 | 2 2 2 4 5 2 Treads . | . . . . . . Leg 9 | 2 2 1 . 2 2 Wheel 7 | . . . 4 3 . Hover . | . . . . . . Flight 1 | . . 1 . . . Utility 19 | 1 3 4 5 6 . Device 11 | . 2 2 4 3 . Storage 5 | 1 1 2 . 1 . Processor 2 | . . . 1 1 . Hackware . | . . . . . . Protection 1 | . . . . 1 . Artifact . | . . . . . . Weapon 26 | 2 5 1 4 7 7 Energy Gun 16 | 1 5 1 2 3 4 Energy Cannon 2 | . . . 1 1 . Ballistic Gun 2 | 1 . . 1 . . Ballistic Cannon . | . . . . . . Launcher 3 | . . . . 2 1 Special Weapon . | . . . . . . Impact Weapon . | . . . . . . Slashing Weapon 3 | . . . . 1 2 Piercing Weapon . | . . . . . . Special Melee Weapon . | . . . . . . Unidentified Prototypes 5 | . . . 1 4 . Corrupted Parts 1 | . . . . . 1 System Corruption 8 | . . . . . 8 Parts Lost 22 | . 1 4 2 12 3 Power 4 | . . . . 3 1 Propulsion 10 | . . 2 1 6 1 Utility 3 | . . . 1 2 . Weapon 5 | . 1 2 . 1 1 Highest Loss Streak 7 | . 1 3 1 7 2 To Critical Strikes . | . . . . . . Average Slot Usage (%) 87 | . 96 96 83 84 33 Engine 8 | . 14 10 2 6 . Core 3 | . . . 8 8 7 Leg 17 | . 27 31 . 1 9 Wheel 9 | . . . 26 19 . Device 14 | . 11 21 17 7 . Storage 8 | . 14 10 . 9 . Processor 3 | . . . 8 10 . Energy Gun 15 | . 25 21 4 5 11 Energy Cannon 2 | . . . 8 4 . Ballistic Gun 1 | . 2 . 3 . . Naked Turns 17 | . . 17 . . . Heaviest Build 38 | 14 20 30 16 38 17 Greatest Support 36 | 20 20 30 30 36 20 Greatest Overweight (x) 4 | . . . . 4 3 Average Overweight (x) . | . . . . . . Largest Inventory Capacity 15 | 8 10 15 5 10 10 Average Capacity 9 | 6 9 14 5 9 5 Most Carried 15 | 2 10 15 5 9 8 Average Carried 7 | 1 7 10 4 6 4 Final Capacity 10 | 8 10 5 5 10 5 Final Carried 10 | 2 10 5 5 8 4 Class Distribution -------------------- 56% | Scavenger-Mutant 43% | Mutant Dominant Class ---------------- Mutant | -10/Materials Scavenger-Mutant | -9/Materials Scavenger-Mutant | -9/Mines Scavenger-Mutant | -8/Materials Mutant | -8/Garrison Resources | -11 -10 -9 -9 -8 -8 ----------- Run | Yrd Mat Mat Min Mat Gar Matter Collected 1014 | 162 263 65 164 285 75 Remotely . | . . . . . . Salvage Created 2003 | . 293 446 139 880 245 Parts 111 | . 18 29 9 45 10 Haulers Intercepted 4 | . 1 1 . 2 . Recyclers Shooed . | . . . . . . Parts Field Recycled . | . . . . . . Retrieved Matter . | . . . . . . Parts Self-Destructed . | . . . . . . Prevented . | . . . . . . Kills | -11 -10 -9 -9 -8 -8 ------- Run | Yrd Mat Mat Min Mat Gar Combat Hostiles Destroyed 43 | . 5 12 6 13 7 Melee 4 | . . . . 3 1 Guns 20 | . 5 12 2 . 1 Cannons 7 | . . . 4 3 . AOE 10 | . . . . 5 5 Classes Destroyed 10 | . 3 2 2 3 . Worker 1 | . . . . 1 . Builder 1 | . . . . 1 . Hauler 4 | . 1 1 . 2 . Recycler 1 | . . . . 1 . Watcher 3 | . 1 2 . . . Swarmer 12 | . . 7 2 . 3 Grunt 23 | . 5 2 2 10 4 Duelist 1 | . . . 1 . . Sentry 6 | . . 3 . 3 . Assembled 1 | . . . 1 . . Best Kill Streak 9 | . 3 5 2 9 6 Combat Bots Only 6 | . 3 5 2 6 6 Max Kills in Single Turn 4 | . 1 1 1 4 4 Gunslinging . | . . . . . . Exploded 4 | . . . . 3 4 Melee 1 | . . . . 1 1 Uniques/NPCs Destroyed . | . . . . . . Combat | -11 -10 -9 -9 -8 -8 -------- Run | Yrd Mat Mat Min Mat Gar Hostile Shots Fired 299 | . 36 98 24 106 35 Missed 80 | . 7 30 7 25 11 Damage Taken 2938 | . 409 650 213 1312 354 Core 869 | . 78 173 68 396 154 Absorbed by Shields . | . . . . . . Regen/Repaired (Parts) 80 | . 80 . . . . Core Remaining (%) 69 | 100 68 . 39 . . Volleys Fired 119 | . 31 46 16 20 6 Largest 2 | . 2 2 2 2 2 Hottest 143 | . 100 100 143 143 106 Shots Fired 225 | . 59 92 32 34 8 Gun 185 | . 59 92 16 12 6 Cannon 33 | . . . 16 17 . Launcher 7 | . . . . 5 2 Special . | . . . . . . Kinetic 23 | . 20 . 3 . . Thermal 192 | . 38 92 29 29 4 Explosive . | . . . . . . Electromagnetic 10 | . 1 . . 5 4 Robot Hit Streak 20 | . 9 20 4 16 8 Robot Miss Streak 6 | . 5 6 4 1 2 Penetration Max . | . . . . . . Secondary Targets 4 | . 1 3 . . . Max Gunslinging Chain 1 | . 1 1 . . . Shots Hit Robots 156 | . 38 57 20 32 9 Core Hits 80 | . 15 21 7 27 10 Critical Kills 1 | . . . . 1 . Critical Parts Destroyed . | . . . . . . Critical Strikes 12 | . 2 5 1 3 1 Burn 9 | . 2 5 1 1 . Meltdown 1 | . . . . 1 . Sever 2 | . . . . 1 1 Melee Attacks 16 | . . . . 13 3 Impact . | . . . . . . Slashing 16 | . . . . 13 3 Piercing . | . . . . . . Sneak Attacks . | . . . . . . Combat Hostiles . | . . . . . . Follow-up Attacks . | . . . . . . Damage Inflicted 3552 | . 463 729 406 1403 551 Guns 1640 | . 463 728 202 172 75 Cannons 512 | . . . 204 308 . Explosions 1018 | . . . . 639 379 Melee 381 | . . . . 284 97 Ramming 1 | . . 1 . . . Kinetic 220 | . 191 . 29 . . Thermal 2180 | . 272 728 377 620 183 Explosive . | . . . . . . Electromagnetic 770 | . . . . 499 271 Impact . | . . . . . . Slashing 381 | . . . . 284 97 Piercing . | . . . . . . Highest Corruption 8 | . . . . . 8 Average Corruption 8 | . . . . . 8 Corruption Purged . | . . . . . . Corruption Blocked . | . . . . . . Effects 4 | . . . . . 4 Message Errors 2 | . . . . . 2 Matter Fused 2 | . . . . . 2 Overload Shots . | . . . . . . Overflow Damage 51 | . . . . 46 5 Projectiles . | . . . . . . Explosions 51 | . . . . 46 5 Melee . | . . . . . . Knockbacks . | . . . . . . Impact . | . . . . . . Kinetic . | . . . . . . Secondary . | . . . . . . Self-Inflicted Damage 64 | . . . . 43 21 Shots 5 | . . . . 3 2 Rammed . | . . . . . . Targets Rammed 1 | . . 1 . . . Kicked 1 | . . 1 . . . Crushed . | . . . . . . Highest Temperature 596 | . 222 129 149 596 132 Average Temperature 118 | . 84 37 59 240 66 Received Heat Transfer 1098 | . 267 108 12 531 180 Effects 20 | . 1 . . 19 . Shutdowns 5 | . . . . 5 . Energy Bleed 2 | . . . . 2 . Interference 3 | . 1 . . 2 . Matter Decay 2 | . . . . 2 . Short Circuit 1 | . . . . 1 . Damage (minor) 2 | . . . . 2 . Damage (major) 5 | . . . . 5 . Siege Activations . | . . . . . . Robots Corrupted 1 | . . . . 1 . Combat Hostiles 1 | . . . . 1 . Parts Fried 2 | . . . . 1 1 Impact Corruptions . | . . . . . . Robots Melted 1 | . . . . 1 . Combat Hostiles 1 | . . . . 1 . Parts Melted 12 | . 2 7 2 1 . Heat Transferred 5667 | . 962 2516 740 1125 324 Parts Sabotaged . | . . . . . . Parts Stolen . | . . . . . . Parts Stripped . | . . . . . . Power Chain Reactions 4 | . . . . 2 2 Alert | -11 -10 -9 -9 -8 -8 ------- Run | Yrd Mat Mat Min Mat Gar Peak Influence 380 | . 116 252 171 380 269 Initial 106 | . . 35 86 44 106 Average 123 | . 67 132 119 189 200 Maximum Alert Level 1 | . . 1 . 1 1 Low Security (%) 85 | 100 100 84 100 63 27 Level 1 14 | . . 15 . 36 72 Level 2 . | . . . . . . Level 3 . | . . . . . . Level 4 . | . . . . . . Level 5 . | . . . . . . High Security . | . . . . . . Max Security . | . . . . . . Squads Dispatched 6 | . . 2 1 3 . Investigation 1 | . . 1 . . . Extermination . | . . . . . . Reinforcement 5 | . . 1 1 3 . Assault . | . . . . . . Garrison . | . . . . . . Intercept . | . . . . . . Searches Triggered . | . . . . . . Construction Impeded 2 | . . . 1 1 . Haulers Reinforced . | . . . . . . Active Scanning Responses . | . . . . . . Cargo Convoy Interrupts . | . . . . . . Stealth | -11 -10 -9 -9 -8 -8 --------- Run | Yrd Mat Mat Min Mat Gar Distress Signals 2 | . . 1 1 . . Communications Jammed . | . . . . . . Distress Signals . | . . . . . . Times Spotted 102 | . 11 30 23 24 14 Peak Tracking Total 19 | . 4 7 19 9 6 Tactical Retreats 11 | . 1 6 3 1 . Traps | -11 -10 -9 -9 -8 -8 ------- Run | Yrd Mat Mat Min Mat Gar Traps Triggered 2 | . . 1 . 1 . Indirectly . | . . . . . . Trap Hack Attempts . | . . . . . . Triggered . | . . . . . . Disarmed 6 | . 6 . . . . Reprogrammed . | . . . . . . Reused . | . . . . . . Traps Extracted . | . . . . . . Installed . | . . . . . . Triggered . | . . . . . . Machines | -11 -10 -9 -9 -8 -8 ---------- Run | Yrd Mat Mat Min Mat Gar Machines Disabled 1 | . . . . 1 . Max in Single Turn 1 | . . . . 1 . Machines Repaired . | . . . . . . Machines Dismantled . | . . . . . . Machines Sabotaged . | . . . . . . Overloaded Fab Kills . | . . . . . . Hacking | -11 -10 -9 -9 -8 -8 --------- Run | Yrd Mat Mat Min Mat Gar Machines Accessed 15 | . 8 3 1 3 . Terminals 11 | . 7 3 . 1 . Fabricators . | . . . . . . Repair Stations 2 | . 1 . . 1 . Recycling Units . | . . . . . . Scanalyzers . | . . . . . . Garrison Access 1 | . . . . 1 . Total Hacks 28 | . 17 3 1 7 . Successful 16 | . 11 1 1 3 . Failed 12 | . 6 2 . 4 . Catastrophic 2 | . . 2 . . . Database Lockouts . | . . . . . . Manual . | . . . . . . Terminals 21 | . 14 3 . 4 . Fabricators . | . . . . . . Repair Stations 4 | . 3 . . 1 . Recycling Units . | . . . . . . Scanalyzers . | . . . . . . Garrison Access 2 | . . . . 2 . Terminal Hacks 12 | . 8 1 1 2 . Robot Analysis 1 | . 1 . . . . Prototype ID Bank 1 | . 1 . . . . Open Door 1 | . . . 1 . . Emergency Access Points 3 | . 3 . . . . Unreport Threat 1 | . . . . 1 . Locate Traps 1 | . 1 . . . . Disarm Traps 1 | . 1 . . . . Zone Layout 3 | . 1 1 . 1 . Fabricator Hacks . | . . . . . . Repair Station Hacks 3 | . 3 . . . . Scan Component 2 | . 2 . . . . Repair 1 | . 1 . . . . Recycling Unit Hacks . | . . . . . . Scanalyzer . | . . . . . . Garrison Access Hacks 1 | . . . . 1 . Unlock Access 1 | . . . . 1 . Unauthorized Hacks . | . . . . . . Terminals . | . . . . . . Fabricators . | . . . . . . Repair Stations . | . . . . . . Recycling Units . | . . . . . . Scanalyzers . | . . . . . . Garrison Access . | . . . . . . Data Cores Recovered . | . . . . . . Used . | . . . . . . Hacking Detections 13 | . 7 3 . 3 . Full Trace Events . | . . . . . . Feedback Events . | . . . . . . Feedback Blocked . | . . . . . . Robot Schematics Acquired . | . . . . . . Robots Built . | . . . . . . Authchips . | . . . . . . Time . | . . . . . . Total Robot Build Rating . | . . . . . . Part Schematics Acquired . | . . . . . . Parts Built . | . . . . . . Authchips . | . . . . . . Time . | . . . . . . Total Part Build Rating . | . . . . . . Parts Repaired 1 | . 1 . . . . Time 26 | . 26 . . . . Parts Recycled . | . . . . . . Recycled Matter . | . . . . . . Retrieved Matter . | . . . . . . Retrieved Components . | . . . . . . Parts Scanalyzed . | . . . . . . Part Schematics Acquired . | . . . . . . Parts Damaged . | . . . . . . Bothacking | -11 -10 -9 -9 -8 -8 ------------ Run | Yrd Mat Mat Min Mat Gar Used RIF Installer . | . . . . . . Robots Hacked . | . . . . . . Non-combat . | . . . . . . Combat . | . . . . . . Robot Hacks Applied . | . . . . . . Relay Couplers Released . | . . . . . . Fabnet Peak Effective % . | . . . . . . Robots Rewired . | . . . . . . Allies Hacked . | . . . . . . Hacks Repelled . | . . . . . . Allies | -11 -10 -9 -9 -8 -8 -------- Run | Yrd Mat Mat Min Mat Gar Total Allies . | . . . . . . Largest Group . | . . . . . . Highest-Rated Group . | . . . . . . Highest-Rated Ally . | . . . . . . Total Orders . | . . . . . . Ally Attacks . | . . . . . . Total Damage . | . . . . . . Kills . | . . . . . . Allies Corrupted . | . . . . . . Allies Melted . | . . . . . . Intel | -11 -10 -9 -9 -8 -8 ------- Run | Yrd Mat Mat Min Mat Gar Robot Analysis Total 1 | . 1 . . . . Derelict Logs Recovered 2 | . . . 2 . . Drone Launches . | . . . . . . Drone Recoveries . | . . . . . . Exploration | -11 -10 -9 -9 -8 -8 ------------- Run | Yrd Mat Mat Min Mat Gar Turns Passed 2692 | 47 714 738 580 446 167 Spaces Moved 1978 | 33 433 428 684 303 97 Core 42 | 4 . 35 . 2 1 Treads . | . . . . . . Legs 962 | 29 433 381 . 23 96 Wheels 697 | . . . 419 278 . Hover . | . . . . . . Flight 277 | . . 12 265 . . Fastest Speed 40 | 50 120 40 40 80 120 Average Speed 95 | 111 120 112 64 96 121 Slowest Speed 250 | 120 120 120 80 250 200 Overloaded Moves . | . . . . . . Propulsion Burnouts . | . . . . . . Robots Hopped 2 | . . 2 . . . Cave-ins Triggered . | . . . . . . Exploration Rate (%) 42 | 3 72 33 98 35 12 Regions Visited 5 Branch Regions 1 Pre-discovered Areas 2 | . . . 2 . . Known Exits Taken 1 | . . . . 1 . Unknown Exits Taken 4 | 1 1 1 1 . . Scrap Searched 2 | . . . 2 . . Spaces Dug . | . . . . . . Terrain Destroyed 13 | . . . 1 9 3 Melee . | . . . . . . Projectile 1 | . . . 1 . . AOE 12 | . . . . 9 3 Terrain Rammed . | . . . . . . Walls Destroyed . | . . . . . . Machines Disabled . | . . . . . . Actions | -11 -10 -9 -9 -8 -8 --------- Run | Yrd Mat Mat Min Mat Gar Total 2519 | 40 567 591 789 400 132 Wait 269 | . 73 94 62 26 14 Move 1970 | 32 432 423 683 303 97 Hop 2 | . . 2 . . . Pick Up 38 | 2 13 10 7 5 1 Fast Attach 36 | 6 4 6 7 10 3 Attach 15 | . 2 1 5 6 1 Detach 12 | . 1 1 2 8 . Swap 18 | . 5 1 2 5 5 Drop 23 | . 6 6 5 4 2 Fire 119 | . 31 46 16 20 6 Melee 16 | . . . . 13 3 Ram . | . . . . . . Kick 1 | . . 1 . . . Crush . | . . . . . . Escape Stasis . | . . . . . . Rewire . | . . . . . . Trap . | . . . . . . Miscellaneous . | . . . . . . Route ------- -11/Scrapyard -10/Materials (discovered 3 exits: *Mat x2 / [*Min]) -9/Materials (discovered 2 exits: *Min x2) -9/Mines (discovered 2 exits: *Mat x2) -8/Materials -8/Garrison History --------- Turn | Location | Event 21 | -11/Scrapyard | Discovered new exit (range 16) 48 | -11/Scrapyard | Entered Materials 308 | -10/Materials | Build established: Mutant 375 | -10/Materials | Discovered new exit (range 16) 424 | -10/Materials | Repaired Aluminum Leg 655 | -10/Materials | Discovered new exit (range 14) 743 | -10/Materials | Discovered new exit (range 17) 762 | -10/Materials | Entered another Materials area 762 | -9/Materials | Evolved 2 slots: Propulsion x1, Utility x1 1053 | -9/Materials | Build established: Scavenger-Mutant 1317 | -9/Materials | Discovered new exit (range 7) 1318 | -9/Materials | Discovered new exit (range 16) 1475 | -9/Materials | Released all parts (6) 1500 | -9/Materials | Entered Mines 1505 | -9/Mines | Lost 3 parts (2n1w) 1510 | -9/Mines | Assembled infested the area 1524 | -9/Mines | Core integrity fell below 50% 1537 | -9/Mines | Learned location of Zion (-6) 1553 | -9/Mines | Met a Derelict bent on vengeance 1785 | -9/Mines | Learned location of Storage (-7) 2037 | -9/Mines | Discovered new exit (range 5) 2064 | -9/Mines | Discovered new exit (range 4) 2070 | -9/Mines | Found the Drone Emporium 2073 | -9/Mines | Found Prototype Device 2080 | -9/Mines | Entered Materials 2080 | -8/Materials | Evolved 2 slots: Power x1, Utility x1 2081 | -8/Materials | Identified Sensor Drone Bay 2479 | -8/Materials | Core integrity fell below 50% 2526 | -8/Materials | Identified exit to Garrison 2526 | -8/Materials | Entered Garrison 2535 | -8/Garrison | Lost 7 parts (2p2n2u1w) 2564 | -8/Garrison | Triggered checkpoint 2604 | -8/Garrison | Triggered checkpoint 2682 | -8/Garrison | Core integrity fell below 20% 2693 | -8/Garrison | Destroyed by G-47 Trooper with Particle Gun Last Messages --------------- 02572_ Chain reaction triggered in Corrupted Lgt. Nuclear Core. 02572_ Imp. Heat Sink fried. 02572_ G-47 Trooper destroyed. 02574_ Aluminum Leg destroyed. 02575_ G-47 Trooper destroyed. 02580_ Acquired Corrupted Aluminum Leg. 02580_ Integrated Corrupted Aluminum Leg (+8). 02584_ Acquired 40 matter. 02587_ Acquired 25 matter. 02592_ &1VVKMY>&CGF5|ZYK2VK4SNRU 02630_ System corrupted: Matter fused (-10). 02634_ Acquired 10 matter. 02653_ UYI>HXI CD:5